bitfinex/quotes_BTCUSD_20220101
["timestamp","ask_amount","ask_price","bid_price","bid_amount"]
[1641052464585,0.00010954,47231.0,47229.0,0.00120341]
[1641052464984,9.128e-05,47230.0,47229.0,0.052942]
[1641052465586,0.10009128,47230.0,47229.0,0.052942]
[1641052465787,0.10009128,47230.0,47229.0,0.10588445]
[1641052465985,9.128e-05,47230.0,47229.0,0.10588445]
[1641052468134,9.128e-05,47230.0,47229.0,0.052942]
[1641052468735,0.10009128,47230.0,47229.0,0.052942]
[1641052468934,9.128e-05,47230.0,47229.0,0.052942]
[1641052471035,9.128e-05,47230.0,47229.0,0.351079]
[1641052471592,9.128e-05,47230.0,47229.0,0.052942]
[1641052474491,9.128e-05,47230.0,47229.0,0.34957708]
[1641052474895,9.128e-05,47230.0,47229.0,0.052942]
[1641052477661,9.128e-05,47230.0,47229.0,0.76661582]
[1641052477861,9.128e-05,47230.0,47229.0,0.81021622]
[1641052478061,9.128e-05,47230.0,47229.0,0.4565424]
[1641052478660,9.128e-05,47230.0,47229.0,0.0965424]
[1641052479697,9.128e-05,47230.0,47229.0,0.1494794]
[1641052480102,9.128e-05,47230.0,47229.0,0.46448917]
[1641052482744,0.01045537,47236.0,47233.0,0.45508562]
[1641052483144,9.129e-05,47235.0,47233.0,0.56096076]
[1641052483544,7.304e-05,47234.0,47233.0,0.56096076]
[1641052486604,7.304e-05,47234.0,47233.0,0.10587514]
[1641052488806,7.304e-05,47234.0,47233.0,0.052938]
[1641052489603,7.304e-05,47234.0,47233.0,0.40661182]
[1641052489806,7.304e-05,47234.0,47233.0,0.052938]
[1641052490651,7.304e-05,47234.0,47233.0,0.04949605]
[1641052490850,7.304e-05,47234.0,47233.0,0.40445671]
[1641052492150,7.304e-05,47234.0,47233.0,0.04949605]
[1641052494395,7.304e-05,47234.0,47230.0,0.21174591]
[1641052494396,7.304e-05,47234.0,47229.0,0.10588642]
[1641052494599,0.1,47230.0,47228.0,0.00899739]
[1641052494793,0.15,47230.0,47228.0,0.00899739]
[1641052494994,0.782951,47229.0,47228.0,0.00899739]
[1641052495193,0.34804139,47229.0,47228.0,0.00899739]
[1641052495394,0.44804139,47229.0,47228.0,0.00899739]
[1641052495597,0.46842728,47229.0,47228.0,0.00899739]
[1641052495993,0.79175202,47229.0,47228.0,0.00899739]
[1641052496194,0.79175202,47229.0,47221.0,0.27542658]
[1641052496394,0.1,47222.0,47221.0,0.27542658]
[1641052500353,0.1,47223.0,47221.0,0.32837658]
[1641052502004,0.1,47225.0,47221.0,0.32837658]
[1641052502197,0.1,47225.0,47222.0,0.052947]
[1641052503599,0.1,47225.0,47222.0,0.10589311]
[1641052503797,0.1,47225.0,47223.0,0.052948]
[1641052504598,0.1,47225.0,47224.0,0.00010954]
[1641052506973,0.45532959,47225.0,47222.0,0.00014606]
[1641052507176,0.60532959,47225.0,47222.0,0.00014606]
[1641052507372,0.60532959,47225.0,47220.0,0.00018257]
[1641052507572,0.152963,47221.0,47220.0,0.00018257]
[1641052508172,0.56799393,47221.0,47220.0,0.00018257]
[1641052508775,0.93258454,47221.0,47220.0,0.00018257]
[1641052509804,0.95299159,47221.0,47220.0,0.00018257]
[1641052511208,0.97287532,47221.0,47220.0,0.00018257]
[1641052511606,0.95246827,47221.0,47220.0,0.00018257]
[1641052511804,0.97211915,47221.0,47220.0,0.00018257]
[1641052512004,0.95223542,47221.0,47220.0,0.00018257]
[1641052512606,0.95223542,47221.0,47219.0,0.00020083]
[1641052512847,0.95233464,47221.0,47219.0,0.00020083]
[1641052513750,0.97321971,47221.0,47219.0,0.00020083]
[1641052513947,0.95346961,47221.0,47219.0,0.00020083]
[1641052514953,0.35410466,47220.0,47219.0,0.00020083]
[1641052515353,0.60932747,47221.0,47219.0,0.00020083]
[1641052515554,0.5884424,47221.0,47219.0,0.00020083]
[1641052515752,0.0185173,47220.0,47219.0,0.00020083]
[1641052516906,0.5869689,47221.0,47219.0,0.00020083]
[1641052517604,0.5869689,47221.0,47218.0,0.00021909]
[1641052517904,0.60624641,47221.0,47218.0,0.00021909]
[1641052518603,0.56799393,47221.0,47218.0,0.00021909]
[1641052518802,0.00493315,47218.0,47217.0,0.00554576]
[1641052519207,0.10493315,47218.0,47217.0,0.00554576]
[1641052522060,0.10493315,47218.0,47215.0,0.00554625]
[1641052523060,0.15789315,47218.0,47215.0,0.00554625]
[1641052526316,0.10493315,47218.0,47215.0,0.00554625]
[1641052527119,0.10493315,47218.0,47214.0,0.00554645]
[1641052527620,0.1,47215.0,47214.0,0.26960427]
[1641052528047,0.1,47215.0,47214.0,0.00561948]
[1641052529450,1.1,47215.0,47214.0,0.00561948]
[1641052531599,1.11915251,47215.0,47214.0,0.00561948]
[1641052532198,1.11915251,47215.0,47214.0,7.303e-05]
[1641052532601,1.32211551,47215.0,47214.0,7.303e-05]
[1641052532800,1.36578642,47215.0,47214.0,7.303e-05]
[1641052533102,2.00033738,47215.0,47213.0,9.129e-05]
[1641052533300,3.26801015,47214.0,47213.0,9.129e-05]
[1641052533501,3.36338301,47214.0,47213.0,9.129e-05]
[1641052533702,3.89112505,47214.0,47213.0,9.129e-05]
[1641052533902,3.94112505,47214.0,47209.0,0.00921779]
[1641052534102,1.07,47213.0,47209.0,0.00921779]
[1641052534301,1.12,47210.0,47209.0,0.00921779]
[1641052534608,1.12,47210.0,47209.0,0.00929082]
[1641052534609,1.2624,47210.0,47209.0,0.00929082]
[1641052535000,1.33626994,47210.0,47209.0,0.00929082]
[1641052535857,1.35556778,47210.0,47209.0,0.00929082]
[1641052536355,0.72230466,47210.0,47209.0,0.00029303]
[1641052536558,0.64843472,47210.0,47209.0,0.00029303]
[1641052536756,0.11929784,47210.0,47209.0,0.00029303]
[1641052536956,0.13896171,47210.0,47209.0,0.00029303]
[1641052538256,0.1,47210.0,47209.0,0.00029303]
[1641052541211,1.22099319,47215.0,47209.0,0.04269303]
[1641052541407,1.02099319,47215.0,47212.0,0.10590973]
[1641052541608,1.02099319,47215.0,47213.0,0.0424]
[1641052541806,1.02099319,47215.0,47214.0,1.250846]
[1641052542006,1.04298455,47215.0,47214.0,0.436193]
[1641052542211,1.02199136,47215.0,47214.0,0.69584796]
[1641052543061,1.04139082,47215.0,47214.0,0.69584796]
[1641052543259,1.04139082,47215.0,47214.0,0.9872211]
[1641052543458,1.03639082,47215.0,47214.0,0.9872211]
[1641052543660,1.03639082,47215.0,47214.0,0.69584796]
[1641052544059,1.05767171,47215.0,47214.0,0.69584796]
[1641052544460,1.05767171,47215.0,47214.0,0.64290096]
[1641052544662,1.05767171,47215.0,47214.0,0.93800867]
[1641052544963,0.995,47215.0,47214.0,0.93800867]
[1641052545159,1.01310283,47215.0,47214.0,2.06600867]
[1641052545361,0.01810283,47215.0,47214.0,2.22023239]
[1641052545760,0.01810283,47215.0,47214.0,1.04223239]
[1641052545961,0.01810283,47215.0,47214.0,1.09223239]
[1641052546161,0.00493315,47218.0,47214.0,1.09223239]
[1641052546363,0.00493315,47218.0,47215.0,0.87614144]
[1641052546608,7.303e-05,47217.0,47216.0,0.436191]
[1641052546808,7.303e-05,47217.0,47216.0,0.486191]
[1641052547008,7.303e-05,47217.0,47216.0,0.976191]
[1641052547308,7.303e-05,47217.0,47216.0,0.75339265]
[1641052547710,7.303e-05,47217.0,47216.0,0.436191]
[1641052547908,7.303e-05,47217.0,47216.0,0.486191]
[1641052548309,7.303e-05,47217.0,47216.0,1.92809404]
[1641052549210,7.303e-05,47217.0,47216.0,2.64965752]
[1641052549509,7.303e-05,47217.0,47216.0,1.59778758]
[1641052550114,0.10007303,47217.0,47216.0,1.59778758]
[1641052550362,0.10007303,47217.0,47216.0,0.8262241]
[1641052550763,0.10007303,47217.0,47216.0,1.2339744]
[1641052551368,7.303e-05,47217.0,47216.0,0.51355223]
[1641052551563,7.303e-05,47217.0,47216.0,0.84895844]
[1641052551763,7.303e-05,47217.0,47216.0,2.69861178]
[1641052551965,7.303e-05,47217.0,47216.0,2.74861178]
[1641052552163,7.303e-05,47217.0,47216.0,2.02695844]
[1641052552564,0.00899779,47223.0,47219.0,0.0529378]
[1641052552767,0.00899779,47223.0,47222.0,0.00127728]
[1641052552969,0.02065175,47229.0,47223.0,1.128]
[1641052553163,0.02065175,47229.0,47224.0,0.383246]
[1641052553164,0.01165396,47229.0,47224.0,0.383246]
[1641052553365,0.0001,47235.0,47227.0,0.00128874]
[1641052553566,0.0001,47235.0,47232.0,1.09741598]
[1641052553764,0.0001,47235.0,47232.0,2.71284198]
[1641052554028,0.0001,47235.0,47234.0,0.28016549]
[1641052554216,0.0001,47235.0,47234.0,0.383246]
[1641052554416,0.0001,47235.0,47234.0,0.0424]
[1641052555517,0.0001,47235.0,47234.0,0.78976053]
[1641052556316,0.0001,47235.0,47234.0,0.71363047]
[1641052556517,0.00429779,47238.0,47234.0,0.37278447]
[1641052556719,0.00429779,47237.0,47235.0,0.10586]
[1641052556917,0.00466295,47237.0,47236.0,0.3476415]
[1641052557768,0.00466295,47237.0,47236.0,0.0424]
[1641052559470,0.00466295,47237.0,47236.0,0.34106831]
[1641052563001,0.00466295,47237.0,47236.0,0.0424]
[1641052564398,0.00921772,47240.0,47237.0,0.052929]
[1641052564599,0.00921772,47240.0,47237.0,0.10585787]
[1641052565666,0.00921772,47240.0,47237.0,0.37166121]
[1641052566668,0.00921772,47240.0,47238.0,0.105849]
[1641052566866,0.00921772,47240.0,47239.0,0.30412899]
[1641052567067,0.00921772,47240.0,47238.0,0.105849]
[1641052567267,0.00921772,47240.0,47239.0,0.29931273]
[1641052569099,0.00921772,47240.0,47237.0,0.05292887]
[1641052570101,0.00921772,47240.0,47237.0,0.10585987]
[1641052572760,0.00921772,47240.0,47237.0,0.40333511]
[1641052572962,0.00921772,47240.0,47237.0,0.40463952]
[1641052573365,0.00921772,47240.0,47237.0,0.10585987]
[1641052574162,0.00921772,47240.0,47237.0,0.40648944]
[1641052574363,0.00921772,47240.0,47237.0,0.40353782]
[1641052574565,0.00921772,47240.0,47237.0,0.10585987]
[1641052575365,0.00921772,47240.0,47237.0,0.05292887]
[1641052576529,0.00921772,47240.0,47233.0,0.42264854]
[1641052577520,0.33379364,47240.0,47233.0,0.42264854]
[1641052577721,0.33379364,47240.0,47232.0,0.0529379]
[1641052577922,0.33379364,47240.0,47226.0,0.110576]
[1641052577923,0.43379364,47240.0,47226.0,0.110576]
[1641052578123,0.40988878,47239.0,47233.0,7.303e-05]
[1641052578320,0.5555933,47240.0,47233.0,7.303e-05]
[1641052578726,0.07386994,47235.0,47233.0,7.303e-05]
[1641052578922,0.052946,47236.0,47233.0,7.303e-05]
[1641052578923,1.13626994,47234.0,47233.0,7.303e-05]
[1641052579121,1.2374726,47234.0,47220.0,0.00031038]
[1641052579322,0.42190855,47229.0,47220.0,0.00031038]
[1641052579523,0.52190855,47229.0,47220.0,0.00031038]
[1641052579823,0.52190855,47229.0,47218.0,0.0003469]
[1641052580022,0.23744506,47227.0,47218.0,0.0003469]
[1641052580256,0.23744506,47227.0,47219.0,0.25509498]
[1641052580458,0.052957,47223.0,47219.0,0.25509498]
[1641052580658,0.052957,47223.0,47220.0,0.00031038]
[1641052585715,0.40833287,47223.0,47220.0,0.00031038]
[1641052585916,0.50833287,47223.0,47220.0,0.00031038]
[1641052586417,0.50833287,47223.0,47214.0,0.00041993]
[1641052586615,0.61425436,47223.0,47214.0,0.00041993]
[1641052586814,0.052962,47219.0,47214.0,0.00041993]
[1641052588450,0.052957,47221.0,47214.0,0.00041993]
[1641052590452,0.052957,47221.0,47215.0,0.72158669]
[1641052590851,0.052957,47221.0,47216.0,0.00038342]
[1641052591534,0.33093636,47219.0,47216.0,0.00038342]
[1641052591924,0.0541866,47218.0,47216.0,0.00038342]
[1641052592127,0.0541866,47218.0,47214.0,0.00041993]
[1641052592326,0.1012166,47218.0,47214.0,0.00041993]
[1641052592527,0.38299683,47217.0,47214.0,0.00041993]
[1641052592727,0.43299683,47217.0,47214.0,0.00041993]
[1641052593028,0.58299683,47217.0,47214.0,0.00041993]
[1641052593427,0.052973,47216.0,47214.0,0.00041993]
[1641052593828,0.42073028,47216.0,47214.0,0.00041993]
[1641052594027,0.52073028,47216.0,47214.0,0.00041993]
[1641052594630,0.35864673,47215.0,47214.0,0.00041993]
[1641052594831,0.40864673,47215.0,47214.0,0.00041993]
[1641052595129,0.50864673,47215.0,47214.0,0.00041993]
[1641052595364,0.52773371,47215.0,47214.0,0.00041993]
[1641052596365,0.54765823,47215.0,47214.0,0.00041993]
[1641052596566,0.52857125,47215.0,47214.0,0.00041993]
[1641052596770,0.42857125,47215.0,47214.0,0.00041993]
[1641052596967,0.06992452,47215.0,47214.0,0.00041993]
[1641052597166,0.01992452,47215.0,47214.0,0.00041993]
[1641052597365,0.03797569,47215.0,47214.0,0.00041993]
[1641052597569,0.01805117,47215.0,47214.0,0.00041993]
[1641052598566,0.102973,47216.0,47214.0,0.00041993]
[1641052600014,0.052973,47216.0,47214.0,0.00041993]
[1641052603169,0.03976757,47219.0,47215.0,0.0424]
[1641052603368,0.01828979,47219.0,47217.0,0.00122119]
[1641052603569,0.01828979,47219.0,47217.0,0.04362119]
[1641052603769,0.01828979,47219.0,47218.0,0.30568167]
[1641052603982,0.01828979,47219.0,47218.0,0.88127264]
[1641052604169,0.03820045,47219.0,47218.0,1.03127264]
[1641052604470,0.01991066,47219.0,47218.0,1.46746764]
[1641052604669,0.0046,47233.0,47218.0,1.31746764]
[1641052604873,0.60556758,47237.0,47218.0,0.92367264]
[1641052605070,0.60556758,47237.0,47220.0,0.10590083]
[1641052605271,0.01996758,47237.0,47221.0,0.36047892]
[1641052605472,0.04115461,47237.0,47222.0,0.0424]
[1641052605673,0.052948,47231.0,47226.0,0.394496]
[1641052605871,0.02118703,47237.0,47226.0,0.394496]
[1641052606071,0.02118703,47237.0,47227.0,0.00018258]
[1641052606271,0.02118703,47237.0,47227.0,0.05312698]
[1641052606531,0.02118703,47237.0,47227.0,0.00018258]
[1641052606532,0.02066041,47233.0,47227.0,0.00018258]
[1641052606721,0.07360641,47233.0,47228.0,0.00016432]
[1641052606920,0.07360641,47233.0,47227.0,0.00018258]
[1641052607624,0.052946,47233.0,47224.0,0.00023735]
[1641052608223,0.052946,47233.0,47224.0,0.05318435]
[1641052608530,0.052946,47233.0,47225.0,0.00021909]
[1641052609721,0.052946,47233.0,47223.0,0.00127012]
[1641052609722,0.052946,47233.0,47224.0,0.00023735]
[1641052610127,0.052946,47233.0,47227.0,0.0529473]
[1641052610378,0.052946,47233.0,47227.0,0.3059074]
[1641052610581,0.052946,47233.0,47228.0,0.00016432]
[1641052611181,0.34819541,47233.0,47228.0,0.00016432]
[1641052611580,0.34819541,47233.0,47223.0,0.36907911]
[1641052611581,0.052952,47230.0,47227.0,0.00018258]
[1641052611780,0.052952,47230.0,47224.0,0.00023735]
[1641052612182,0.052952,47230.0,47220.0,0.00031038]
[1641052612382,0.052952,47230.0,47219.0,0.00032864]
[1641052612786,0.44012356,47229.0,47219.0,0.00032864]
[1641052612983,0.43495985,47221.0,47218.0,0.0003469]
[1641052613181,0.53495985,47221.0,47214.0,0.00041993]
[1641052613384,1.1091733,47221.0,47214.0,0.00041993]
[1641052613583,0.052967,47218.0,47214.0,0.00041993]
[1641052613782,0.57421345,47221.0,47214.0,0.00041993]
[1641052614213,0.81682188,47225.0,47214.0,0.00041993]
[1641052614214,0.052965,47218.0,47214.0,0.00041993]
[1641052616615,0.052965,47218.0,47215.0,0.05296079]
[1641052616817,0.02088833,47224.0,47215.0,0.05296079]
[1641052617015,0.02088833,47224.0,47216.0,0.00038342]
[1641052617614,0.02088833,47224.0,47215.0,0.00040167]
[1641052617860,0.0185302,47227.0,47218.0,0.052954]
[1641052618259,0.0185302,47227.0,47219.0,0.00032864]
[1641052618260,0.052954,47224.0,47219.0,0.00032864]
[1641052618460,0.28244668,47222.0,47219.0,0.00032864]
[1641052618859,0.28244668,47222.0,47215.0,0.00040167]
[1641052618860,0.38836968,47222.0,47215.0,0.00040167]
[1641052619462,0.052964,47219.0,47214.0,0.00041993]
[1641052619663,0.02104096,47222.0,47214.0,0.00041993]
[1641052620061,0.02104096,47222.0,47219.0,0.24217766]
[1641052620262,0.02104096,47222.0,47221.0,0.0012136]
[1641052620565,0.02104096,47222.0,47221.0,0.00150573]
[1641052620962,0.02193394,47225.0,47221.0,0.00150573]
[1641052621164,0.02193394,47225.0,47222.0,0.3952531]
[1641052621367,0.02193394,47225.0,47222.0,0.39552697]
[1641052621607,0.02193394,47225.0,47223.0,0.00025561]
[1641052621806,0.052949,47229.0,47223.0,0.00025561]
[1641052622009,0.33209798,47231.0,47223.0,0.00025561]
[1641052622205,0.02183964,47231.0,47225.0,0.052947]
[1641052622407,0.02183964,47231.0,47223.0,0.00025561]
[1641052622606,0.04015983,47231.0,47226.0,0.00020084]
[1641052622806,0.04015983,47231.0,47222.0,0.4481961]
[1641052622807,0.01832019,47231.0,47223.0,0.00025561]
[1641052623012,0.01832019,47231.0,47227.0,0.0012917]
[1641052623211,0.01832019,47231.0,47228.0,0.0424]
[1641052623407,0.01832019,47231.0,47229.0,0.10587]
[1641052623612,0.01832019,47231.0,47230.0,0.0424]
[1641052623807,0.02179869,47233.0,47230.0,0.04252781]
[1641052624007,0.02179869,47233.0,47231.0,0.05293455]
[1641052624208,0.02179869,47233.0,47232.0,0.0424]
[1641052624408,0.02179869,47233.0,47232.0,0.04249129]
[1641052624907,0.021433,47237.0,47232.0,0.04249129]
[1641052625109,0.021433,47237.0,47232.0,0.14835929]
[1641052625768,0.03067268,47240.0,47233.0,0.052934]
[1641052625966,0.03067268,47240.0,47234.0,0.0424]
[1641052627367,0.00921772,47240.0,47234.0,0.0424]
[1641052627568,0.00921772,47240.0,47235.0,0.052935]
[1641052627768,0.00921772,47240.0,47236.0,0.05293481]
[1641052627969,0.00921772,47240.0,47237.0,0.35348047]
[1641052629633,0.00921772,47240.0,47237.0,0.40641347]
[1641052629827,0.00921772,47240.0,47237.0,0.45934659]
[1641052630432,0.00921772,47240.0,47237.0,0.10586612]
[1641052630632,0.00921772,47240.0,47237.0,0.05293312]
[1641052631032,0.06215372,47240.0,47237.0,0.05293312]
[1641052631932,0.00921772,47240.0,47237.0,0.10586712]
[1641052635978,0.00921772,47240.0,47237.0,0.05293312]
[1641052637412,0.06215372,47240.0,47237.0,0.05293312]
[1641052642673,0.00921772,47240.0,47237.0,0.05293312]
[1641052643672,0.00921772,47240.0,47237.0,0.10586712]
[1641052643875,0.00921772,47240.0,47237.0,0.05293312]
[1641052646623,0.052936,47239.0,47237.0,0.05293312]
[1641052649675,0.00921772,47240.0,47237.0,0.05293312]
[1641052649877,0.00921772,47240.0,47239.0,0.0612117]
[1641052650076,0.00921772,47240.0,47239.0,0.45934822]
[1641052650275,0.00921772,47240.0,47239.0,0.51830822]
[1641052650676,0.00905477,47240.0,47239.0,0.85319444]
[1641052650876,0.00905477,47240.0,47239.0,0.83830392]
[1641052651177,0.0005,47253.0,47241.0,0.94]
[1641052651382,0.34107785,47245.0,47243.0,1.12923365]
[1641052651625,0.0002,47248.0,47245.0,0.7]
[1641052651826,0.0002,47248.0,47247.0,0.00120258]
[1641052652026,0.0002,47248.0,47247.0,0.04360258]
[1641052652224,0.0002,47248.0,47246.0,0.05291262]
[1641052652624,0.00018258,47247.0,47246.0,0.05291262]
[1641052653029,0.00018258,47247.0,47245.0,0.10582524]
[1641052653328,0.00016432,47246.0,47243.0,0.05293213]
[1641052653728,0.00014606,47245.0,47243.0,0.05293213]
[1641052654127,0.0001278,47244.0,47243.0,0.05293213]
[1641052655130,0.0001278,47244.0,47243.0,0.04189515]
[1641052657078,0.0001278,47244.0,47240.0,0.00895477]
[1641052657278,0.052937,47242.0,47240.0,0.00895477]
[1641052657677,7.303e-05,47241.0,47240.0,0.00895477]
[1641052658378,0.41684703,47241.0,47240.0,0.00895477]
[1641052658578,1.44684703,47241.0,47240.0,0.00895477]
[1641052659415,1.52071697,47241.0,47240.0,0.00895477]
[1641052660012,1.52071697,47241.0,47235.0,0.00899059]
[1641052660013,1.02895477,47240.0,47235.0,0.00899059]
[1641052660214,1.19386994,47236.0,47235.0,0.00899059]
[1641052660517,1.19386994,47236.0,47229.0,0.00852768]
[1641052660518,1.02,47235.0,47229.0,0.00852768]
[1641052660717,1.44386994,47230.0,47229.0,0.00852768]
[1641052660913,1.48626994,47230.0,47229.0,0.00852768]
[1641052661113,0.75,47229.0,47222.0,0.01915279]
[1641052661315,0.66799081,47225.0,47222.0,0.01915279]
[1641052661513,0.052964,47224.0,47223.0,0.00025561]
[1641052661713,0.41527099,47224.0,47223.0,0.00025561]
[1641052662215,0.51527099,47224.0,47222.0,0.00027387]
[1641052662415,0.36457903,47223.0,47222.0,0.00027387]
[1641052662875,0.052964,47224.0,47222.0,0.00027387]
[1641052663077,0.36157616,47223.0,47222.0,0.00027387]
[1641052663277,0.052964,47224.0,47222.0,0.00027387]
[1641052665080,0.36005058,47223.0,47222.0,0.00027387]
[1641052665276,0.46005058,47223.0,47222.0,0.00027387]
[1641052665476,0.56005058,47223.0,47222.0,0.00027387]
[1641052665676,0.85005058,47223.0,47222.0,0.00027387]
[1641052665878,0.89245058,47223.0,47222.0,0.00027387]
[1641052666520,1.28245058,47223.0,47222.0,0.00027387]
[1641052666714,0.89245058,47223.0,47222.0,0.00027387]
[1641052667716,0.60245058,47223.0,47222.0,0.00027387]
[1641052667916,0.052964,47224.0,47222.0,0.00027387]
[1641052669116,0.052953,47226.0,47222.0,0.00027387]
[1641052669617,0.57421345,47234.0,47222.0,0.00027387]
[1641052669816,0.57891345,47234.0,47225.0,0.05295183]
[1641052670117,0.58320441,47235.0,47226.0,0.00020084]
[1641052670368,0.57421345,47235.0,47226.0,0.00020084]
[1641052670570,1.13580962,47236.0,47226.0,0.00020084]
[1641052670770,0.105903,47232.0,47226.0,0.00020084]
[1641052671169,0.052951,47232.0,47226.0,0.00020084]
[1641052672868,0.052951,47232.0,47228.0,0.05294946]
[1641052673270,0.052951,47232.0,47229.0,0.00014606]
[1641052675525,0.70013304,47231.0,47229.0,0.00014606]
[1641052676525,1.16035768,47232.0,47229.0,0.00014606]
[1641052676724,0.46022464,47232.0,47225.0,0.00021909]
[1641052676924,0.052957,47228.0,47225.0,0.00021909]
[1641052677524,0.69392876,47227.0,47225.0,0.00021909]
[1641052678369,0.102957,47228.0,47225.0,0.00021909]
[1641052678968,0.102957,47228.0,47222.0,0.00027387]
[1641052679169,0.052956,47225.0,47222.0,0.00027387]
[1641052679875,0.052956,47225.0,47224.0,0.05295566]
[1641052680271,0.052956,47225.0,47224.0,0.05319301]
[1641052682312,0.052951,47227.0,47224.0,0.05319301]
[1641052682515,0.052951,47227.0,47225.0,0.052953]
[1641052682711,0.052951,47227.0,47225.0,0.00021909]
[1641052682910,0.052951,47227.0,47226.0,0.00020084]
[1641052683112,0.052951,47227.0,47225.0,0.00021909]
[1641052683113,0.4060084,47227.0,47225.0,0.00021909]
[1641052683512,0.052951,47227.0,47224.0,0.00023735]
[1641052684716,0.052951,47227.0,47222.0,0.0532344]
[1641052684914,0.40686805,47224.0,47222.0,0.00027387]
[1641052685119,0.43279828,47223.0,47222.0,0.00027387]
[1641052685363,0.48279828,47223.0,47222.0,0.00027387]
[1641052685863,0.58279828,47223.0,47222.0,0.00027387]
[1641052686266,0.202968,47223.0,47222.0,0.00027387]
[1641052686966,0.102968,47223.0,47222.0,0.00027387]
[1641052693562,0.052968,47223.0,47222.0,0.00027387]
[1641052693763,0.00126271,47230.0,47222.0,0.00027387]
[1641052693764,0.1998,47234.0,47222.0,0.04267387]
[1641052693963,0.5,47230.0,47222.0,0.04267387]
[1641052694164,0.9107,47237.0,47225.0,0.052952]
[1641052694362,0.9107,47237.0,47223.0,0.35391736]
[1641052694562,0.9107,47237.0,47226.0,0.10610459]
[1641052694775,0.9107,47237.0,47226.0,0.35391736]
[1641052694776,0.105904,47231.0,47226.0,0.35391736]
[1641052694963,0.05,47236.0,47227.0,0.00018258]
[1641052695162,0.052951,47232.0,47227.0,0.00018258]
[1641052695763,0.052951,47232.0,47230.0,0.105899]
[1641052695963,0.052951,47232.0,47230.0,0.15885082]
[1641052696163,0.052951,47232.0,47231.0,0.00010955]
[1641052699224,1.00633769,47232.0,47229.0,0.00014606]
[1641052699425,1.00633769,47232.0,47230.0,0.052958]
[1641052699826,1.00633769,47232.0,47231.0,0.00010955]
[1641052699827,0.052951,47232.0,47231.0,0.00010955]
[1641052700025,0.252951,47232.0,47231.0,0.00010955]
[1641052700893,0.81,47231.0,47230.0,0.04812777]
[1641052701088,0.91,47231.0,47230.0,0.04812777]
[1641052701687,0.1,47231.0,47230.0,0.04812777]
[1641052701887,0.45,47231.0,47230.0,0.04812777]
[1641052702489,1.40338669,47231.0,47230.0,0.04812777]
[1641052703491,0.052966,47230.0,47228.0,0.05296432]
[1641052704843,0.07386994,47229.0,47228.0,0.05296432]
[1641052705145,0.052966,47228.0,47226.0,0.05296651]
[1641052705447,0.07386994,47227.0,47222.0,0.0109187]
[1641052705644,0.94386994,47223.0,47222.0,0.0109187]
[1641052705844,0.99386994,47223.0,47222.0,0.0109187]
[1641052706046,1.46975679,47223.0,47222.0,0.0109187]
[1641052706543,1.51215679,47223.0,47221.0,0.00011]
[1641052706744,0.07386994,47222.0,47221.0,0.00011]
[1641052707144,0.07386994,47222.0,47221.0,0.00029258]
[1641052708064,1.07902263,47223.0,47221.0,0.00029258]
[1641052708264,1.09857554,47223.0,47221.0,0.00029258]
[1641052708466,1.19857554,47223.0,47222.0,0.00016432]
[1641052708864,0.34639585,47223.0,47222.0,0.00016432]
[1641052709065,0.14639585,47223.0,47222.0,0.00016432]
[1641052709265,0.16588363,47223.0,47222.0,0.00016432]
[1641052709466,0.14633072,47223.0,47222.0,0.00016432]
[1641052710068,0.58633072,47223.0,47222.0,0.00016432]
[1641052710266,0.41391922,47223.0,47222.0,0.00016432]
[1641052710666,0.95407984,47223.0,47222.0,0.00016432]
[1641052710871,1.88012947,47223.0,47222.0,0.00016432]
[1641052711067,0.95407984,47223.0,47222.0,0.00016432]
[1641052711524,0.59443144,47223.0,47222.0,0.00016432]
[1641052711718,1.52010006,47223.0,47222.0,0.00016432]
[1641052712118,0.59443144,47223.0,47222.0,0.00016432]
[1641052712318,0.61552245,47223.0,47222.0,0.00016432]
[1641052712519,1.81963685,47223.0,47222.0,0.00016432]
[1641052713319,1.83951444,47223.0,47222.0,0.00016432]
[1641052713520,1.81842343,47223.0,47222.0,0.00016432]
[1641052713721,2.74409205,47223.0,47222.0,0.00016432]
[1641052714321,2.7655362,47223.0,47222.0,0.00016432]
[1641052714522,1.81998999,47223.0,47222.0,0.00016432]
[1641052715391,1.57386732,47223.0,47222.0,0.00016432]
[1641052715595,1.49999738,47223.0,47222.0,0.00016432]
[1641052715792,1.30068443,47223.0,47222.0,0.00016432]
[1641052716392,1.31955474,47223.0,47222.0,0.00016432]
[1641052716695,1.51224848,47223.0,47222.0,0.00016432]
[1641052717093,1.51224848,47223.0,47221.0,0.00011]
[1641052717294,2.13273738,47223.0,47221.0,0.00011]
[1641052717492,2.15408426,47223.0,47221.0,0.00011]
[1641052717793,0.35,47222.0,47221.0,0.00011]
[1641052717994,1.04435884,47222.0,47221.0,0.00011]
[1641052718192,1.14435884,47222.0,47221.0,0.00011]
[1641052719413,1.16361559,47222.0,47221.0,0.00011]
[1641052720516,0.83382733,47222.0,47220.0,0.04808388]
[1641052720719,0.81457058,47222.0,47220.0,0.04808388]
[1641052721617,0.07386994,47221.0,47220.0,0.04808388]
[1641052722418,0.71419275,47222.0,47220.0,0.04808388]
[1641052722869,1.20408343,47221.0,47220.0,0.04808388]
[1641052723368,1.27795337,47221.0,47220.0,0.04808388]
[1641052723771,1.37795337,47221.0,47220.0,0.04808388]
[1641052724571,1.92035337,47221.0,47220.0,0.04808388]
[1641052724769,2.84602199,47221.0,47220.0,0.04808388]
[1641052725369,1.94101046,47221.0,47220.0,0.04808388]
[1641052726613,1.93983509,47221.0,47220.0,0.04808388]
[1641052726812,1.83983509,47221.0,47220.0,0.04808388]
[1641052727015,1.79743509,47221.0,47220.0,0.04808388]
[1641052727217,1.29743509,47221.0,47220.0,0.04808388]
[1641052727412,1.3165075,47221.0,47220.0,0.04808388]
[1641052727611,1.22315584,47221.0,47220.0,0.04808388]
[1641052728213,1.32315584,47221.0,47220.0,0.04808388]
[1641052728811,1.30408343,47221.0,47220.0,0.04808388]
[1641052736821,1.20408343,47221.0,47220.0,0.06528388]
[1641052737421,0.39527808,47221.0,47220.0,0.37027812]
[1641052737622,1.20408343,47222.0,47221.0,0.56]
[1641052737863,0.78052201,47222.0,47221.0,0.67873401]
[1641052738068,0.92566862,47228.0,47221.0,0.67873401]
[1641052738266,0.00896932,47230.0,47226.0,0.00123857]
[1641052738466,0.052944,47234.0,47232.0,0.32043099]
[1641052738666,0.052944,47234.0,47233.0,0.30946593]
[1641052738864,0.14060072,47235.0,47232.0,0.37337399]
[1641052739364,0.00895477,47240.0,47232.0,0.4792592]
[1641052739566,0.105893,47236.0,47234.0,0.34416669]
[1641052739766,0.155893,47236.0,47235.0,0.05294323]
[1641052739965,0.155893,47236.0,47234.0,0.34416669]
[1641052740172,0.105893,47236.0,47234.0,0.39711169]
[1641052740366,0.105893,47236.0,47235.0,0.3102921]
[1641052740566,7.303e-05,47238.0,47235.0,0.31397562]
[1641052740766,7.303e-05,47238.0,47236.0,0.05294026]